bitfinex-derivatives/quotes_BTCF0:USTF0_20241227
["timestamp","ask_amount","ask_price","bid_price","bid_amount"]
[1735257602056,0.001,95841.0,95837.0,0.008]
[1735257604348,0.05080315,95840.0,95837.0,0.008]
[1735257604550,0.0988,95839.0,95837.0,0.008]
[1735257605555,0.05080315,95838.0,95808.0,0.18676267]
[1735257605748,0.04998828,95817.0,95808.0,0.18676267]
[1735257606450,0.04998828,95820.0,95808.0,0.18676267]
[1735257606655,0.09997656,95820.0,95808.0,0.18676267]
[1735257606855,0.04998828,95820.0,95808.0,0.19576267]
[1735257607063,0.15641902,95812.0,95808.0,0.009]
[1735257608159,0.15641902,95813.0,95808.0,0.009]
[1735257608458,0.15641902,95813.0,95808.0,0.016]
[1735257609057,0.15641902,95813.0,95808.0,0.007]
[1735257609262,0.001,95812.0,95808.0,0.016]
[1735257609661,0.18770283,95814.0,95808.0,0.007]
[1735257609861,0.1022,95813.0,95808.0,0.016]
[1735257610261,0.1012,95813.0,95808.0,0.007]
[1735257610461,0.1012,95813.0,95808.0,0.016]
[1735257610462,0.001,95812.0,95808.0,0.016]
[1735257611257,0.301,95812.0,95779.0,0.01031436]
[1735257611462,0.04998828,95789.0,95778.0,0.18676267]
[1735257612572,0.04998828,95789.0,95775.0,0.1047]
[1735257612573,0.12499955,95784.0,95779.0,0.018]
[1735257612866,0.12499955,95784.0,95779.0,0.009]
[1735257614369,0.05098828,95789.0,95778.0,0.02862778]
[1735257614370,0.09364627,95782.0,95778.0,0.02862778]
[1735257614566,0.09364627,95782.0,95778.0,0.018]
[1735257614952,0.09364627,95782.0,95778.0,0.009]
[1735257615156,0.09364627,95782.0,95779.0,0.009]
[1735257615659,0.09364627,95782.0,95779.0,0.011]
[1735257615867,0.09364627,95782.0,95779.0,0.009]
[1735257616070,0.09464627,95782.0,95779.0,0.009]
[1735257616566,0.09464627,95782.0,95779.0,0.011]
[1735257616870,0.001,95782.0,95779.0,0.011]
[1735257617664,0.002,95782.0,95779.0,0.002]
[1735257618364,0.01130628,95782.0,95779.0,0.002]
[1735257618567,0.01230628,95782.0,95779.0,0.011]
[1735257623977,0.002,95782.0,95779.0,0.011]
[1735257624378,0.07474627,95791.0,95779.0,0.011]
[1735257624574,0.07474627,95791.0,95780.0,0.04998828]
[1735257624775,0.04998828,95800.0,95780.0,0.04998828]
[1735257625073,0.04998828,95790.0,95779.0,0.011]
[1735257625777,0.04998828,95790.0,95780.0,0.009]
[1735257626369,0.05098828,95790.0,95779.0,0.018]
[1735257626577,0.15308828,95790.0,95779.0,0.018]
[1735257627871,0.15308828,95790.0,95780.0,0.009]
[1735257628472,0.15308828,95790.0,95780.0,0.018]
[1735257628672,0.15308828,95790.0,95780.0,0.009]
[1735257629579,0.15308828,95790.0,95780.0,0.018]
[1735257630878,0.052262,95783.0,95782.0,0.052261]
[1735257632080,0.052262,95783.0,95782.0,0.061261]
[1735257632982,0.053262,95783.0,95782.0,0.070261]
[1735257634484,0.032362,95783.0,95782.0,0.070261]
[1735257635176,0.032362,95783.0,95782.0,0.018]
[1735257637282,0.032362,95783.0,95782.0,0.070261]
[1735257650382,0.18861144,95783.0,95782.0,0.070261]
[1735257650589,0.15724944,95783.0,95782.0,0.070261]
[1735257651593,4.4e-07,95784.0,95783.0,0.052261]
[1735257651995,0.21894431,95801.0,95792.0,0.052256]
[1735257652195,0.21894431,95801.0,95800.0,0.052252]
[1735257652500,0.06304431,95801.0,95800.0,0.052252]
[1735257652699,0.00092,95806.0,95805.0,0.052249]
[1735257652899,0.06304431,95823.0,95822.0,0.05224]
[1735257654514,0.12513365,95823.0,95816.0,0.052243]
[1735257654704,0.12613365,95823.0,95822.0,0.06124]
[1735257655805,0.001,95823.0,95822.0,0.06124]
[1735257656010,0.001,95823.0,95822.0,0.06524]
[1735257658401,0.001,95823.0,95814.0,0.23946087]
[1735257658603,0.05224,95822.0,95821.0,0.05224]
[1735257659007,0.001,95823.0,95813.0,0.18721687]
[1735257659205,0.001,95823.0,95822.0,0.05224]
[1735257660312,0.001,95822.0,95821.0,0.05624]
[1735257660811,0.001,95823.0,95822.0,0.05624]
[1735257661415,0.0952,95829.0,95828.0,0.052236]
[1735257661807,0.0952,95829.0,95824.0,0.052239]
[1735257662206,0.052238,95825.0,95824.0,0.052239]
[1735257663200,0.0952,95829.0,95822.0,0.003]
[1735257663516,0.001,95823.0,95822.0,0.007]
[1735257663901,0.0952,95829.0,95828.0,0.052236]
[1735257664618,0.0962,95829.0,95828.0,0.052236]
[1735257665316,0.148436,95829.0,95828.0,0.056236]
[1735257665503,0.148436,95829.0,95828.0,0.058236]
[1735257668316,0.0962,95829.0,95828.0,0.058236]
[1735257669124,0.001,95829.0,95828.0,0.058236]
[1735257679037,0.12513365,95848.0,95828.0,0.058236]
[1735257679237,0.12513365,95848.0,95842.0,0.052229]
[1735257680338,0.12513365,95848.0,95842.0,0.055229]
[1735257680841,0.12513365,95851.0,95842.0,0.055229]
[1735257683433,0.17735765,95851.0,95842.0,0.055229]
[1735257683636,0.052224,95851.0,95842.0,0.055229]
[1735257686838,0.22363365,95854.0,95842.0,0.055229]
[1735257687139,0.0985,95854.0,95842.0,0.055229]
[1735257689145,0.0985,95854.0,95843.0,0.052228]
[1735257690039,0.0985,95854.0,95844.0,0.052228]
[1735257690240,0.0985,95854.0,95845.0,0.052227]
[1735257690440,0.0985,95854.0,95848.0,0.18711765]
[1735257690635,0.0995,95854.0,95848.0,0.18711765]
[1735257692837,0.0995,95854.0,95843.0,0.052228]
[1735257692838,0.0995,95854.0,95846.0,0.30174108]
[1735257693043,0.1005,95854.0,95846.0,0.30174108]
[1735257694046,0.0995,95854.0,95846.0,0.30174108]
[1735257694345,0.0995,95854.0,95846.0,0.053227]
[1735257704851,0.001,95854.0,95846.0,0.053227]
[1735257706451,0.001,95854.0,95849.0,0.24951408]
[1735257707551,0.001,95854.0,95846.0,0.30274108]
[1735257707752,0.052221,95856.0,95846.0,0.30274108]
[1735257707951,0.002,95854.0,95846.0,0.30274108]
[1735257708548,0.001,95854.0,95846.0,0.30174108]
[1735257708749,0.001,95854.0,95847.0,0.24951408]
[1735257710158,0.001,95854.0,95849.0,0.24951408]
[1735257711450,0.17735565,95855.0,95851.0,0.06055437]
[1735257711755,0.002,95854.0,95851.0,0.06055437]
[1735257712058,0.002,95854.0,95853.0,0.052223]
[1735257712446,0.17735565,95855.0,95854.0,0.052222]
[1735257712651,0.17935565,95855.0,95854.0,0.052222]
[1735257712957,0.054222,95855.0,95854.0,0.052222]
[1735257713652,0.056222,95855.0,95854.0,0.052222]
[1735257714652,0.054222,95855.0,95854.0,0.052222]
[1735257715356,0.057222,95855.0,95854.0,0.052222]
[1735257723160,0.057222,95855.0,95851.0,0.01052985]
[1735257723364,0.052225,95850.0,95846.0,0.052227]
[1735257723561,0.052225,95850.0,95849.0,0.052225]
[1735257725159,0.054225,95850.0,95849.0,0.052225]
[1735257726960,0.054225,95850.0,95841.0,0.20224666]
[1735257727563,0.054225,95850.0,95840.0,0.04993701]
[1735257727771,0.054225,95850.0,95840.0,0.06056012]
[1735257727959,0.054225,95850.0,95849.0,0.052225]
[1735257728164,0.052225,95850.0,95849.0,0.052225]
[1735257730566,0.054225,95850.0,95849.0,0.052225]
[1735257734854,0.157825,95850.0,95849.0,0.052225]
[1735257739172,0.052228,95843.0,95836.0,0.37443375]
[1735257739366,0.1881,95842.0,95836.0,0.38737328]
[1735257740168,0.24033,95842.0,95841.0,0.052229]
[1735257741270,0.24133,95842.0,95841.0,0.052229]
[1735257741870,0.24033,95842.0,95841.0,0.056229]
[1735257748171,0.36554174,95842.0,95841.0,0.056229]
[1735257750262,0.24033,95842.0,95841.0,0.056229]
[1735257752769,0.36553841,95842.0,95841.0,0.056229]
[1735257755071,0.24033,95842.0,95841.0,0.056229]
[1735257756272,0.36553841,95842.0,95841.0,0.056229]
[1735257757979,0.24033,95842.0,95841.0,0.056229]
[1735257759380,0.31330841,95842.0,95841.0,0.056229]
[1735257760876,0.1881,95842.0,95841.0,0.056229]
[1735257762881,0.1881,95842.0,95831.0,0.35908041]
[1735257763680,0.09395085,95836.0,95835.0,0.052233]
[1735257764576,0.09395085,95836.0,95835.0,0.03924656]
[1735257765076,0.052234,95834.0,95833.0,0.052234]
[1735257766685,0.2545887,95835.0,95826.0,0.0006]
[1735257766875,0.2545887,95835.0,95815.0,0.00056]
[1735257767075,0.2545887,95835.0,95814.0,0.37443375]
[1735257767076,0.052243,95817.0,95816.0,0.052243]
[1735257768485,0.12527243,95819.0,95818.0,0.052242]
[1735257769474,0.17751343,95819.0,95818.0,0.052242]
[1735257769674,0.052241,95819.0,95818.0,0.052242]
[1735257769878,0.053241,95819.0,95818.0,0.057242]
[1735257770079,0.053241,95819.0,95818.0,0.005]
[1735257771886,0.052246,95811.0,95808.0,0.052247]
[1735257772087,0.052246,95811.0,95800.0,0.04993701]
[1735257772088,0.052246,95811.0,95809.0,0.052247]
[1735257772881,0.052246,95811.0,95810.0,0.052246]
[1735257773083,0.054246,95811.0,95810.0,0.052246]
[1735257773789,0.17927626,95811.0,95810.0,0.052246]
[1735257773982,0.17827626,95811.0,95810.0,0.052246]
[1735257774183,0.17927626,95811.0,95810.0,0.052246]
[1735257774784,0.054246,95811.0,95810.0,0.052246]
[1735257775289,0.053246,95811.0,95810.0,0.052246]
[1735257775478,0.052246,95811.0,95810.0,0.057246]
[1735257775677,0.053246,95811.0,95810.0,0.057246]
[1735257776391,0.001,95811.0,95810.0,0.057246]
[1735257779185,0.09365871,95830.0,95829.0,0.052236]
[1735257779688,0.147634,95832.0,95829.0,0.052236]
[1735257780480,0.0954,95832.0,95820.0,0.04993701]
[1735257780789,0.052237,95828.0,95820.0,0.04993701]
[1735257780987,0.052237,95828.0,95826.0,0.052237]
[1735257781183,0.052237,95828.0,95827.0,0.052237]
[1735257781896,0.001,95830.0,95829.0,0.054236]
[1735257782283,0.0964,95832.0,95831.0,0.052235]
[1735257782792,0.00156555,95837.0,95827.0,0.002]
[1735257782990,0.001,95828.0,95827.0,0.056237]
[1735257783388,0.001,95832.0,95831.0,0.003]
[1735257783580,0.001,95832.0,95831.0,0.055235]
[1735257784091,0.0985,95836.0,95835.0,0.052233]
[1735257784284,0.150732,95836.0,95835.0,0.052233]
[1735257785696,0.149732,95836.0,95835.0,0.052233]
[1735257786180,0.150732,95836.0,95835.0,0.053233]
[1735257787195,0.0985,95836.0,95835.0,0.053233]
[1735257787688,0.001,95836.0,95835.0,0.053233]
[1735257794790,0.001,95836.0,95826.0,0.04993701]
[1735257794993,0.001,95836.0,95835.0,0.052233]
[1735257796499,0.001,95836.0,95835.0,0.053233]
[1735257798690,0.001,95836.0,95835.0,0.07370129]
[1735257818799,0.12421773,95844.0,95835.0,0.07370129]
[1735257819114,0.12421773,95844.0,95843.0,0.052228]
[1735257819514,0.052227,95845.0,95844.0,0.052228]
[1735257821315,0.052227,95845.0,95844.0,0.053228]
[1735257821616,0.053227,95845.0,95844.0,0.053228]
[1735257823810,0.053227,95845.0,95836.0,0.19315918]
[1735257824011,0.053227,95845.0,95844.0,0.052228]
[1735257825012,0.052227,95845.0,95844.0,0.052228]
[1735257825703,0.053227,95845.0,95844.0,0.052228]
[1735257827617,0.053227,95845.0,95844.0,0.23954825]
[1735257828812,0.053227,95845.0,95844.0,0.052228]
[1735257829220,0.001,95845.0,95844.0,0.052228]
[1735257842916,0.001,95845.0,95844.0,0.03281053]
[1735257843626,0.15609785,95858.0,95844.0,0.03281053]
[1735257843829,0.15609785,95858.0,95857.0,0.052221]
[1735257844124,0.052219,95861.0,95848.0,0.10216201]
[1735257844320,0.052219,95861.0,95860.0,0.052219]
[1735257845125,0.20831685,95861.0,95860.0,0.052219]
[1735257846316,0.052219,95861.0,95860.0,0.052219]
[1735257846529,0.058219,95861.0,95860.0,0.052219]
[1735257846731,0.062219,95861.0,95860.0,0.052219]
[1735257847724,0.062219,95861.0,95860.0,0.07763066]
[1735257848231,0.01,95861.0,95860.0,0.07763066]
[1735257851635,0.062218,95861.0,95860.0,0.07763066]
[1735257851832,0.062218,95861.0,95860.0,0.052219]
[1735257854728,0.062218,95861.0,95854.0,0.07244753]
[1735257854933,0.062218,95861.0,95860.0,0.052219]
[1735257856530,0.061218,95861.0,95860.0,0.052219]
[1735257857325,0.062218,95861.0,95860.0,0.052219]
[1735257859739,0.052223,95852.0,95851.0,0.08785992]
[1735257859943,0.052223,95852.0,95838.0,0.37438813]
[1735257860133,0.052227,95845.0,95840.0,0.04993701]
[1735257860536,0.052222,95856.0,95838.0,0.00056]
[1735257860737,0.052232,95836.0,95835.0,0.10216901]
[1735257861041,0.052232,95836.0,95835.0,0.052232]
[1735257861734,0.0982,95844.0,95831.0,0.14541224]
[1735257861940,0.15647766,95844.0,95834.0,0.09987402]
[1735257862136,0.15647766,95844.0,95843.0,0.052228]
[1735257862935,0.0981,95876.0,95843.0,0.3]
[1735257863239,0.1059,95879.0,95871.0,0.052213]
[1735257864042,0.0025652,95872.0,95871.0,0.052213]
[1735257864939,0.0115652,95872.0,95871.0,0.052213]
[1735257865736,0.0105652,95872.0,95871.0,0.052213]
[1735257865936,0.0165652,95872.0,95871.0,0.053213]
[1735257867132,0.21386453,95882.0,95871.0,0.053213]
[1735257867133,0.052193,95909.0,95871.0,0.053213]
[1735257867338,0.2091,95898.0,95871.0,0.053213]
[1735257867541,0.052204,95889.0,95871.0,0.053213]
[1735257868136,0.052204,95889.0,95871.0,0.07562835]
[1735257868348,0.052204,95889.0,95871.0,0.07762835]
[1735257868546,0.052204,95889.0,95872.0,0.052212]
[1735257868845,0.2091,95898.0,95871.0,0.08162835]
[1735257869148,0.052204,95888.0,95871.0,0.08162835]
[1735257869534,0.052204,95888.0,95872.0,0.002]
[1735257870238,0.052204,95888.0,95871.0,0.07662835]
[1735257870640,0.052204,95888.0,95871.0,0.08562835]
[1735257871147,0.053204,95888.0,95872.0,0.008]
[1735257871747,0.053204,95888.0,95871.0,0.08562835]
[1735257872051,0.053204,95888.0,95872.0,0.002]
[1735257872939,0.053204,95888.0,95871.0,0.08562835]
[1735257873140,0.052204,95888.0,95871.0,0.07662835]
[1735257873346,0.001,95888.0,95872.0,0.008]
[1735257873646,0.052205,95887.0,95872.0,0.008]
[1735257874252,0.052205,95887.0,95871.0,0.07662835]
[1735257874445,0.001,95888.0,95871.0,0.03341535]
[1735257874646,0.001,95888.0,95873.0,0.052212]
[1735257874846,0.052201,95893.0,95874.0,0.052211]
[1735257875049,0.001,95887.0,95874.0,0.052211]
[1735257875855,0.001,95887.0,95872.0,0.011]
[1735257876150,0.001,95887.0,95874.0,0.002]
[1735257876652,0.001,95887.0,95872.0,0.009]
[1735257876853,0.001,95887.0,95874.0,0.003]
[1735257877449,0.052202,95892.0,95889.0,0.02128464]
[1735257878648,0.052202,95892.0,95875.0,0.052211]
[1735257878853,0.052202,95892.0,95888.0,0.052206]
[1735257879252,0.053202,95892.0,95888.0,0.052206]
[1735257879845,0.052202,95892.0,95888.0,0.052206]
[1735257880153,0.053202,95892.0,95888.0,0.052206]
[1735257880357,0.053202,95892.0,95889.0,0.002]
[1735257880944,0.053202,95892.0,95889.0,0.052205]
[1735257881550,0.053202,95892.0,95889.0,0.054205]
[1735257883364,0.001,95892.0,95889.0,0.002]
[1735257883661,0.001,95892.0,95891.0,0.052205]
[1735257884760,0.052204,95894.0,95878.0,0.09731638]
[1735257884956,0.001,95892.0,95891.0,0.052205]
[1735257885855,0.052204,95893.0,95891.0,0.052205]
[1735257886166,0.052204,95893.0,95891.0,0.053205]
[1735257886356,0.052205,95892.0,95891.0,0.053205]
[1735257886548,0.052205,95892.0,95891.0,0.001]
[1735257886749,0.052205,95892.0,95878.0,0.001]
[1735257886960,0.052211,95881.0,95878.0,0.001]
[1735257887157,0.155611,95880.0,95878.0,0.001]
[1735257887365,0.052212,95879.0,95878.0,0.001]
[1735257887760,0.052215,95874.0,95868.0,0.052217]
[1735257887948,0.052215,95874.0,95869.0,0.052217]
[1735257888357,0.052215,95874.0,95870.0,0.052216]
[1735257888564,0.052216,95871.0,95870.0,0.052216]
[1735257889357,0.052216,95871.0,95870.0,0.054216]
[1735257889864,0.053216,95871.0,95870.0,0.062216]
[1735257891663,0.053216,95871.0,95870.0,0.01]
[1735257897263,0.001,95871.0,95870.0,0.01]
[1735257897463,0.001,95871.0,95870.0,0.062217]
[1735257899763,0.12467397,95888.0,95887.0,0.052207]
[1735257900660,0.12467397,95888.0,95876.0,0.052213]
[1735257900661,0.22217397,95890.0,95889.0,0.052206]
[1735257901858,0.0975,95890.0,95889.0,0.052206]
[1735257902861,0.0985,95890.0,95889.0,0.052206]
[1735257906578,0.001,95890.0,95889.0,0.052206]
[1735257910071,0.001,95890.0,95889.0,0.07197268]
[1735257911674,0.001,95890.0,95877.0,0.05137103]
[1735257911875,0.1,95900.0,95884.0,0.3114499]
[1735257912078,0.1,95900.0,95899.0,0.052201]
[1735257913678,0.105,95900.0,95899.0,0.052201]
[1735257915379,0.108,95900.0,95899.0,0.052201]
[1735257916087,0.09055192,95900.0,95899.0,0.052201]
[1735257918581,0.09055192,95900.0,95899.0,0.07233912]
[1735257925886,0.09055192,95900.0,95896.0,0.35072]
[1735257926087,0.052204,95894.0,95893.0,0.10933738]
[1735257926291,0.1764,95899.0,95886.0,0.3114499]
[1735257926488,0.052207,95887.0,95886.0,0.32936495]
[1735257927492,0.052207,95887.0,95886.0,0.01791505]
[1735257927691,0.052207,95887.0,95885.0,0.052208]
[1735257927990,0.002,95894.0,95885.0,0.052208]
[1735257928191,0.052205,95892.0,95886.0,0.052208]
[1735257928406,0.001,95887.0,95886.0,0.052208]
[1735257928896,0.001,95887.0,95886.0,0.053208]
[1735257929097,0.052205,95891.0,95886.0,0.053208]
[1735257929295,0.0839,95890.0,95886.0,0.053208]
[1735257929692,0.0839,95890.0,95887.0,0.052207]
[1735257930197,0.0839,95890.0,95888.0,0.052207]
[1735257930699,0.0839,95890.0,95889.0,0.052206]
[1735257931398,0.0849,95890.0,95889.0,0.052206]
[1735257932095,0.0839,95890.0,95889.0,0.052206]
[1735257932289,0.0849,95890.0,95889.0,0.052206]
[1735257934494,0.001,95890.0,95889.0,0.052206]
[1735257934996,0.001,95890.0,95879.0,0.02009561]
[1735257934997,0.001,95890.0,95884.0,0.052209]
[1735257935196,0.052211,95880.0,95879.0,0.00156423]
[1735257936691,0.052211,95880.0,95879.0,0.00556423]
[1735257937097,0.052209,95885.0,95879.0,0.00556423]
[1735257937297,0.12467397,95887.0,95884.0,0.052209]
[1735257937494,0.12467397,95887.0,95879.0,0.00556423]
[1735257937799,0.12467397,95887.0,95886.0,0.052208]
[1735257938400,0.052206,95891.0,95886.0,0.052208]
[1735257938703,0.052206,95891.0,95890.0,0.052206]
[1735257940189,0.001,95891.0,95880.0,0.052211]
[1735257940396,0.003,95891.0,95890.0,0.052206]
[1735257941303,0.001,95891.0,95890.0,0.052206]
[1735257941804,0.09366058,95896.0,95895.0,0.052203]
[1735257942801,0.003,95896.0,95881.0,0.052211]
[1735257943107,0.002,95891.0,95883.0,0.052209]
[1735257943500,0.003,95896.0,95895.0,0.052203]
[1735257943701,0.006,95896.0,95895.0,0.052203]
[1735257944410,0.003,95896.0,95895.0,0.052203]
[1735257944709,0.052203,95896.0,95890.0,0.052205]
[1735257944898,0.052203,95896.0,95892.0,0.052205]
[1735257945403,0.055203,95896.0,95892.0,0.052205]
[1735257945710,0.052203,95896.0,95878.0,0.14830257]
[1735257945900,0.056203,95896.0,95878.0,0.14830257]
[1735257946496,0.056203,95896.0,95892.0,0.052204]
[1735257946702,0.055203,95896.0,95893.0,0.052204]
[1735257946908,0.054203,95896.0,95893.0,0.052204]
[1735257947211,0.052203,95895.0,95893.0,0.052204]
[1735257948199,0.052205,95893.0,95878.0,0.001]
[1735257948506,0.052205,95893.0,95879.0,0.052212]
[1735257948710,0.052205,95893.0,95878.0,0.001]
[1735257948711,0.052205,95893.0,95887.0,0.052207]
[1735257949004,0.052205,95893.0,95875.0,0.0180172]
[1735257949412,0.052205,95893.0,95890.0,0.052206]
[1735257950009,0.053205,95893.0,95890.0,0.052206]
[1735257950610,0.054205,95893.0,95890.0,0.052206]
[1735257951707,0.055205,95893.0,95890.0,0.052206]
[1735257951903,0.055205,95893.0,95891.0,0.052205]
[1735257952910,0.053205,95893.0,95891.0,0.052205]
[1735257953112,0.055205,95893.0,95891.0,0.052205]
[1735257953312,0.14886558,95893.0,95891.0,0.052205]
[1735257953613,0.14886558,95893.0,95892.0,0.052205]
[1735257954609,0.055205,95893.0,95892.0,0.052205]
[1735257955211,0.054205,95893.0,95892.0,0.052205]
[1735257955421,0.056205,95893.0,95892.0,0.052205]
[1735257958610,0.004,95893.0,95892.0,0.052205]
[1735257960421,0.09783146,95893.0,95892.0,0.052205]
[1735257961717,0.004,95893.0,95892.0,0.052205]
[1735257963023,0.004,95893.0,95891.0,0.02263862]
[1735257963321,0.004,95893.0,95892.0,0.052205]
[1735257964326,0.12867397,95893.0,95892.0,0.052205]
[1735257964523,0.12667397,95893.0,95892.0,0.052205]
[1735257964712,0.12867397,95893.0,95892.0,0.052205]
[1735257965721,0.004,95893.0,95892.0,0.052205]
[1735257966317,0.09382295,95899.0,95892.0,0.052205]
[1735257966528,0.09382295,95899.0,95898.0,0.052202]
[1735257967118,0.08255192,95900.0,95898.0,0.052202]
[1735257967319,0.08255192,95900.0,95899.0,0.052201]
[1735257968428,0.08355192,95900.0,95899.0,0.052201]
[1735257968627,0.08855192,95900.0,95899.0,0.052201]
[1735257970133,0.08855192,95900.0,95899.0,0.36299785]
[1735257971321,0.08855192,95900.0,95899.0,0.052201]
[1735257973219,0.0886094,95900.0,95899.0,0.052201]
[1735257975721,0.0886094,95900.0,95892.0,0.01281003]
[1735257975921,0.0886094,95900.0,95899.0,0.052201]
[1735257976723,0.0876094,95900.0,95899.0,0.052201]
[1735257976925,0.0886094,95900.0,95899.0,0.052201]
[1735257979030,0.0886094,95900.0,95899.0,0.07483275]
[1735257986834,0.0886094,95900.0,95899.0,0.38527449]
[1735257992140,0.0886094,95900.0,95899.0,0.75910262]
[1735257994343,0.0886094,95900.0,95899.0,0.38527449]
[1735257995734,0.0886094,95900.0,95899.0,0.73587449]
[1735257997939,0.0886094,95900.0,95899.0,1.10673222]
[1735258001649,0.0886094,95900.0,95899.0,0.73587449]
[1735258003742,0.0886094,95900.0,95899.0,0.47595967]
[1735258003943,0.0886094,95900.0,95899.0,0.89861776]
[1735258005052,0.0886094,95900.0,95899.0,0.92725869]
[1735258006847,0.0886094,95900.0,95899.0,0.5568016]
[1735258008455,0.00605748,95900.0,95899.0,0.5568016]
[1735258009056,0.00605748,95900.0,95899.0,0.91791857]
[1735258034176,0.00605748,95900.0,95899.0,0.5568016]
[1735258035085,0.00605748,95900.0,95899.0,0.31364765]
[1735258036871,0.00605748,95900.0,95899.0,0.66339963]
[1735258042988,5.748e-05,95900.0,95899.0,0.66339963]
[1735258043279,5.748e-05,95900.0,95899.0,0.66639963]
[1735258045683,0.30005748,95900.0,95860.0,0.66306158]
[1735258045884,0.052205,95892.0,95860.0,0.61139958]
[1735258046185,0.052219,95866.0,95861.0,1.10966825]
[1735258046382,0.00675848,95865.0,95860.0,0.0006]
[1735258046680,0.00669564,95864.0,95855.0,0.68535158]
[1735258046984,0.06093371,95864.0,95858.0,0.052223]
[1735258047173,0.06093371,95864.0,95862.0,0.052221]
[1735258047587,0.00156559,95886.0,95878.0,0.052212]
[1735258047886,0.00156559,95886.0,95880.0,0.052211]
[1735258048084,0.00156559,95886.0,95862.0,0.04365031]
[1735258048283,0.00156559,95886.0,95879.0,0.2898775]
[1735258048487,0.00156559,95886.0,95881.0,0.05221]
[1735258049287,0.00156559,95886.0,95879.0,0.3420895]
[1735258049886,0.00156559,95886.0,95879.0,0.18542459]
[1735258050483,0.00156559,95886.0,95879.0,0.18742459]
[1735258051079,0.00156559,95886.0,95880.0,0.052211]
[1735258053190,0.18687711,95881.0,95880.0,0.052211]
[1735258053384,0.18687711,95881.0,95880.0,0.18542359]
[1735258054386,0.001,95881.0,95880.0,0.17740397]
[1735258056192,0.18687711,95883.0,95880.0,0.17940397]
[1735258056791,0.18687711,95881.0,95880.0,0.17840397]
[1735258056992,0.18787711,95881.0,95880.0,0.17840397]
[1735258057696,0.18687711,95881.0,95880.0,0.17840397]
[1735258059486,0.18787711,95881.0,95880.0,0.17840397]
[1735258059691,0.18787711,95881.0,95875.0,0.052214]
[1735258060789,0.18687711,95881.0,95875.0,0.052214]
[1735258060987,0.18687711,95882.0,95875.0,0.09747736]
[1735258061188,0.18687711,95882.0,95875.0,0.10047736]
[1735258061992,0.18687711,95881.0,95875.0,0.10047736]
[1735258062692,0.18687711,95881.0,95875.0,0.04826336]
[1735258062895,0.18687711,95881.0,95875.0,0.10047736]
[1735258063198,0.18687711,95881.0,95876.0,0.052213]
[1735258063901,0.18687711,95882.0,95876.0,0.052213]
[1735258064299,0.18687711,95882.0,95877.0,0.052213]
[1735258064802,0.18687711,95882.0,95873.0,0.03797155]
[1735258065003,0.18687711,95882.0,95881.0,0.052211]
[1735258065801,0.052206,95890.0,95881.0,0.052211]
[1735258065802,0.25570913,95889.0,95881.0,0.052211]
[1735258066003,0.00672871,95888.0,95882.0,0.1103]
[1735258066300,0.00672625,95887.0,95882.0,0.1103]
[1735258066497,0.06883202,95887.0,95882.0,0.16251]
[1735258067194,0.18687711,95888.0,95882.0,0.16251]
[1735258067195,0.18687711,95888.0,95882.0,0.16451]
[1735258067397,0.18687711,95888.0,95883.0,0.05221]
[1735258067598,0.00672809,95887.0,95883.0,0.05221]
[1735258067792,0.00672809,95886.0,95883.0,0.05221]
[1735258067994,0.25570913,95886.0,95884.0,0.1027]
[1735258068386,0.00672792,95885.0,95882.0,0.006]
[1735258068598,0.05221,95883.0,95882.0,0.004]
[1735258068795,0.05893926,95883.0,95882.0,0.004]
[1735258069192,0.05894393,95883.0,95882.0,0.004]
[1735258069394,0.07556595,95883.0,95874.0,0.08280517]
[1735258069695,0.00673393,95882.0,95874.0,0.08280517]
[1735258069999,0.00673393,95881.0,95874.0,0.08280517]
[1735258070197,0.05221,95883.0,95882.0,0.005]
[1735258070397,0.05894672,95883.0,95882.0,0.005]
[1735258070788,0.05894672,95883.0,95882.0,0.001]
[1735258070995,0.12777874,95883.0,95882.0,0.001]
[1735258072101,0.07556874,95883.0,95875.0,0.052214]
[1735258072294,0.05894772,95882.0,95875.0,0.052214]
[1735258072491,0.00673672,95881.0,95875.0,0.052214]
[1735258072802,0.00674244,95880.0,95875.0,0.052214]
[1735258073004,0.00674244,95879.0,95875.0,0.052214]
[1735258073200,0.00674244,95878.0,95875.0,0.052214]
[1735258073391,0.00674244,95877.0,95875.0,0.052214]
[1735258073597,0.00674244,95876.0,95875.0,0.054214]
[1735258073803,0.00674244,95876.0,95875.0,0.002]
[1735258074000,0.06883202,95876.0,95875.0,0.002]
[1735258074202,0.07557446,95876.0,95875.0,0.002]
[1735258074405,0.07557825,95876.0,95875.0,0.002]
[1735258076211,0.07557825,95876.0,95875.0,0.004]
[1735258076411,0.07557825,95876.0,95875.0,0.002]
[1735258076607,0.07557825,95876.0,95875.0,0.004]
[1735258077106,0.17132388,95882.0,95875.0,0.002]
[1735258077406,0.00112001,95889.0,95888.0,0.052207]
[1735258077603,0.40719761,95893.0,95892.0,0.052205]
[1735258077910,0.4061576,95893.0,95892.0,0.052205]
[1735258078406,5.748e-05,95900.0,95879.0,0.09983124]
[1735258078596,5.748e-05,95900.0,95890.0,0.04991562]
[1735258078802,5.748e-05,95900.0,95897.0,0.052202]
[1735258079701,5.748e-05,95900.0,95890.0,0.04991562]
[1735258079702,0.005,95893.0,95891.0,0.052205]
[1735258079898,0.006,95893.0,95892.0,0.052205]
[1735258080311,0.001,95893.0,95892.0,0.052205]
[1735258081813,0.001,95893.0,95882.0,0.3201]
[1735258081814,0.00105748,95900.0,95895.0,0.052203]
[1735258082005,0.00105748,95900.0,95897.0,0.052202]
[1735258082200,0.00105748,95900.0,95898.0,0.052201]
[1735258082411,5.748e-05,95900.0,95899.0,0.1096]
[1735258082604,5.748e-05,95900.0,95899.0,0.161801]